fUSD/lending_fUSD_20240125
["ID","MTS","AMOUNT","RATE_DAILY","PERIOD"]
[312688621,1706145146714,-939.98,0.00052876,31]
[312688622,1706145146725,-500.0,0.00052876,31]
[312688623,1706145146736,-500.0,0.00052876,31]
[312688624,1706145146746,-500.0,0.00052876,31]
[312688625,1706145146755,-500.0,0.00052876,31]
[312688626,1706145146765,-508.04,0.00052876,31]
[312688627,1706145146774,-500.0,0.00052876,31]
[312688628,1706145146783,-681.8,0.00052876,31]
[312688629,1706145146793,-646.07,0.00052876,31]
[312688630,1706145146802,-150.0,0.00052879,7]
[312688631,1706145146811,-150.0,0.0005288,7]
[312688632,1706145146821,-3090.0,0.0005289,2]
[312688633,1706145146830,-2560.0,0.0005289,2]
[312688634,1706145146839,-150.0,0.00052897,7]
[312688635,1706145146848,-8004.592983,0.000529,2]
[312688636,1706145146856,-210.0,0.000529,40]
[312688637,1706145146866,-647.69,0.00052904,120]
[312688638,1706145146876,-150.0,0.00052907,7]
[312688639,1706145146886,-3739.5225242,0.00052911,2]
[312688640,1706145146895,-1104.9562109,0.00052911,2]
[312688641,1706145146904,-48403.936,0.00052911,2]
[312688642,1706145146913,-150.0,0.00052912,12]
[312688643,1706145146923,-150.0,0.00052912,12]
[312688644,1706145146932,-150.0,0.00052912,7]
[312688645,1706145146942,-150.0,0.00052915,7]
[312688646,1706145146951,-1500.0,0.00052915,7]
[312688647,1706145146961,-150.0,0.00052916,7]
[312688648,1706145146971,-150.0,0.00052918,7]
[312688649,1706145146980,-66022.0,0.0005292,30]
[312688650,1706145146989,-1642.0,0.0005292,30]
[312688651,1706145146998,-328.0,0.0005292,30]
[312688652,1706145147008,-150.0,0.00052921,7]
[312688653,1706145147018,-150.0,0.00052921,7]
[312688654,1706145147027,-150.0,0.00052936,7]
[312688655,1706145147037,-153.95702124,0.00052936,60]
[312688656,1706145147048,-300.0,0.00052937,7]
[312688657,1706145147058,-158.39181887,0.00052945,60]
[312688658,1706145147067,-233.38585,0.00052947,2]
[312688659,1706145147076,-4260.4269372,0.00052947,2]
[312688660,1706145147086,-502.7942731,0.00052947,2]
[312688661,1706145147095,-418.3665212,0.00052947,2]
[312688662,1706145147105,-150.0,0.00052948,7]
[312688663,1706145147114,-150.0,0.00052955,7]
[312688664,1706145147124,-150.0,0.00052958,7]
[312688665,1706145147134,-158.39181887,0.0005296,60]
[312688666,1706145147143,-3293.8355979,0.00052964,2]
[312688667,1706145147152,-1069.7527946,0.00052964,2]
[312688668,1706145147161,-46861.8079999,0.00052964,2]
[312688669,1706145147171,-55235.4242,0.00052964,2]
[312688670,1706145147180,-2509.3927955,0.00052964,2]
[312688671,1706145147190,-47750.7441103,0.00052964,2]
[312688672,1706145147200,-150.0,0.00052964,7]
[312688673,1706145147209,-176.58520058,0.00052968,60]
[312688674,1706145147218,-250.0,0.0005297,7]
[312688675,1706145147228,-200.0,0.0005297,7]
[312688676,1706145147237,-150.0,0.0005297,7]
[312688677,1706145147247,-150.0,0.00052971,7]
[312688678,1706145147256,-452.49609033,0.00052973,60]
[312688679,1706145147265,-1500.0,0.00052973,7]
[312688680,1706145147275,-150.0,0.00052975,7]
[312688681,1706145147284,-150.0,0.00052976,7]
[312688682,1706145147294,-452.49609033,0.00052976,60]
[312688683,1706145147303,-885626.59353711,0.00052983,60]
[312688684,1706145147782,-611542.67623815,0.00052983,60]
[312688685,1706145147792,-151.304378,0.00052983,2]
[312688686,1706145147802,-151.0,0.00052983,14]
[312688687,1706145147811,-516.58311,0.00052983,14]
[312688688,1706145147821,-516.58311,0.00052983,14]
[312688689,1706145147831,-200.0,0.00052987,42]
[312688690,1706145147841,-200.0,0.00052987,54]
[312688691,1706145147850,-200.0,0.00052987,66]
[312688692,1706145147859,-200.0,0.00052987,85]
[312688693,1706145147869,-176.58520058,0.00052989,60]
[312688694,1706145147879,-233.38585,0.00052994,2]
[312688695,1706145147888,-5214.7824865,0.00052994,2]
[312688696,1706145147898,-433.82799,0.00052994,2]
[312688697,1706145147908,-324.47325512,0.00052994,2]
[312688698,1706145147917,-361.7575972,0.00052994,2]
[312688699,1706145147926,-2848.1486717,0.00052994,2]
[312688700,1706145147936,-1034.5493782,0.00052994,2]
[312688701,1706145147946,-45319.68,0.00052994,2]
[312688702,1706145147955,-53295.7069999,0.00052994,2]
[312688703,1706145147964,-2421.269776,0.00052994,2]
[312688704,1706145147974,-46271.6503204,0.00052994,2]
[312688705,1706145147983,-3300.30698936,0.00052999,2]
[312688706,1706145147993,-600.0,0.00053,54]
[312688707,1706145148002,-2127.28,0.00053,15]
[312688708,1706145148012,-100000.0,0.00053,120]
[312688709,1706145148022,-11202.0,0.00053,120]
[312688710,1706145148031,-163.71560757,0.00053,2]
[312688711,1706145148041,-35581.0,0.00053,10]
[312688712,1706145148050,-3289.06885217,0.00053,30]
[312688713,1706145148060,-150.0,0.00053,2]
[312688714,1706145148069,-316.501014,0.00053,20]
[312688715,1706145148079,-500.0,0.00053,20]
[312688716,1706145148088,-150.0,0.00053,31]
[312688717,1706145148100,-300.0,0.00053,31]
[312688718,1706145148110,-156.05615207,0.00053,2]
[312688719,1706145148121,-177.14986,0.00053,67]
[312688720,1706145148131,-150.0,0.00053,7]
[312688721,1706145148140,-233.509671,0.00053,37]
[312688722,1706145148150,-306.179395,0.00053,37]
[312688723,1706145148159,-300.0,0.00053,35]
[312688724,1706145148170,-12538.42186084,0.00053,120]
[312688725,1706145148182,-554014.11601151,0.00053,120]
[312688726,1706145148199,-722.91217257,0.00053,120]
[312688727,1706145148231,-150.54,0.00042,2]
[312688728,1706145148241,-6848.06,0.00053,120]
[312688729,1706145148253,-6093.85373047,0.00053,120]
[312688730,1706145148265,-600202.98504575,0.00053,120]
[312688731,1706145148290,-150.54,0.00042,2]
[312688732,1706145148300,-836.07,0.00051506,31]
[312688733,1706145148310,-2031.32982445,0.00053,120]
[312688734,1706145148321,-4450.4087247,0.00053,120]
[312688735,1706145148334,-4912.170635,0.00053,120]
[312688736,1706145148347,-573.56209315,0.00053,120]
[312688737,1706145148359,-873.08696613,0.00053,120]
[312688738,1706145148388,-150.54,0.00042,2]
[312688739,1706145148398,-321.93,0.00050136,31]
[312688740,1706145148901,-371.51006178,0.00022113,2]
[312688741,1706145149295,-3760.36667634,0.00022113,2]
[312688742,1706145149304,-1994.27361752,0.00022155,2]
[312688743,1706145149325,-5.72638248,0.00022155,2]
[312688744,1706145149334,-960.94494096,0.000224,8]
[312688745,1706145149345,-39.05505904,0.000224,8]
[312688746,1706145149355,-421.19162988,0.000225,8]
[312688747,1706145149399,-978.80837012,0.000225,8]
[312688748,1706145149408,-1324.94303038,0.000327,2]
[312688749,1706145149417,-164.0,0.00041,14]
[312688750,1706145149427,-150.54,0.00042,2]
[312688751,1706145149437,-150.54,0.00042,2]
[312688752,1706145149448,-150.54,0.00042,2]
[312688753,1706145149459,-150.54,0.00042,2]
[312688754,1706145149468,-150.54,0.00042,2]
[312688755,1706145149476,-164.0,0.00043151,90]
[312688756,1706145149485,-500.0,0.00043198,2]
[312688757,1706145149494,-168.0,0.00045308,90]
[312688758,1706145149504,-500.0,0.00049315,31]
[312688759,1706145149513,-632.22,0.00049315,31]
[312688760,1706145149522,-500.0,0.00049315,31]
[312688761,1706145149531,-500.0,0.00049315,31]
[312688762,1706145149540,-500.0,0.00049315,31]
[312688763,1706145149549,-500.0,0.00049315,31]
[312688764,1706145149562,-500.0,0.00049315,31]
[312688765,1706145149572,-500.0,0.00049589,31]
[312688766,1706145149581,-632.22,0.00049589,31]
[312688767,1706145149592,-500.0,0.00049589,31]
[312688768,1706145149601,-500.0,0.00049589,31]
[312688769,1706145149609,-500.0,0.00049589,31]
[312688770,1706145149620,-190.99409947,0.00049589,31]
[312688771,1706145149634,-309.00590053,0.00049589,31]
[312688772,1706145149643,-164.0,0.00049839,120]
[312688773,1706145149654,-441.40330595,0.00049863,31]
[312688774,1706145149663,-632.22,0.00049863,31]
[312688775,1706145149672,-500.0,0.00049863,31]
[312688776,1706145149682,-500.0,0.00049863,31]
[312688777,1706145149691,-500.0,0.00049863,31]
[312688778,1706145149701,-178.07,0.00050136,31]
[312688779,1706145149710,-632.22,0.00050136,31]
[312688780,1706145149720,-500.0,0.00050136,31]
[312688781,1706145149729,-500.0,0.00050136,31]
[312688782,1706145149738,-500.0,0.00050136,31]
[312688783,1706145149748,-500.0,0.0005041,31]
[312688784,1706145149757,-632.22,0.0005041,31]
[312688785,1706145149767,-500.0,0.0005041,31]
[312688786,1706145149776,-500.0,0.0005041,31]
[312688787,1706145149786,-500.0,0.00050684,31]
[312688788,1706145149796,-632.22,0.00050684,31]
[312688789,1706145149807,-500.0,0.00050958,31]
[312688790,1706145149816,-632.22,0.00050958,31]
[312688791,1706145149827,-500.0,0.00051232,31]
[312688792,1706145149837,-632.22,0.00051232,31]
[312688793,1706145149847,-500.0,0.00051506,31]
[312688794,1706145149856,-632.22,0.00051506,31]
[312688795,1706145149867,-836.07,0.0005178,31]
[312688796,1706145149878,-500.0,0.0005178,31]
[312688797,1706145149887,-632.22,0.0005178,31]
[312688798,1706145149897,-836.07,0.00052054,31]
[312688799,1706145149906,-500.0,0.00052054,31]
[312688800,1706145149915,-632.22,0.00052054,31]
[312688801,1706145149927,-836.07,0.00052328,31]
[312688802,1706145149936,-637.26053786,0.00052328,31]
[312688803,1706145149948,-632.22,0.00052328,31]
[312688804,1706145149958,-836.07,0.00052602,31]
[312688805,1706145149968,-632.22,0.00052602,31]
[312688806,1706145149978,-836.07,0.00052876,31]
[312688807,1706145149987,-20064.33107283,0.00053,120]
[312688808,1706145150676,-686.336,0.0002227,2]
[312688809,1706145150689,-343.60980816,0.0002227,2]
[312688810,1706145150701,-2746.1399994,0.0002227,2]
[312688811,1706145150814,-355.79093056,0.0002227,2]
[312688812,1706145150824,-1700.0,0.000226,8]
[312688813,1706145150834,-300.0,0.000227,8]
[312688814,1706145150845,-157.14123053,0.00032827,4]
[312688815,1706145150854,-499.99,0.00040521,2]
[312688816,1706145150864,-1143.79,0.0004673,2]
[312688817,1706145150876,-419.04,0.00047004,2]
[312688818,1706145150886,-500.0,0.00049315,2]
[312688819,1706145150899,-424.90210981,0.00049315,7]
[312688820,1706145150911,-575.09789019,0.00049315,7]
[312688821,1706145150921,-500.0,0.00049315,31]
[312688822,1706145150931,-500.0,0.00049589,2]
[312688823,1706145150940,-500.0,0.00049863,2]
[312688824,1706145150950,-160.9641444,0.00050136,2]
[312688825,1706145150961,-339.0358556,0.00050136,2]
[312688826,1706145150971,-500.0,0.0005041,31]
[312688827,1706145150980,-500.0,0.0005041,2]
[312688828,1706145150990,-500.0,0.00050684,31]
[312688829,1706145151000,-602.82053183,0.00050684,31]
[312688830,1706145151010,-500.0,0.00050958,31]
[312688831,1706145151020,-640.31927198,0.00051232,31]
[312688832,1706145151030,-17163.41346267,0.00053,120]
[312688833,1706145151043,-1111.36074728,0.00053,120]
[312688834,1706145151055,-515.40000015,0.00053,120]
[312688835,1706145151078,-500.0,0.00049589,31]
[312688836,1706145151087,-632.22,0.00052876,31]
[312688837,1706145151097,-3314.18487029,0.00053,120]
[312688838,1706145151131,-721.09060164,0.00053,120]
[312688839,1706145151143,-434.29593539,0.00053,120]
[312688840,1706145151155,-443.99782992,0.00053,120]
[312688841,1706145365101,10098.0,0.00021001,2]
[312688842,1706145853664,633.6342,0.00021598,2]
[312688843,1706146002124,434513.2958,0.00021598,2]
[312688844,1706146029616,151.64,0.00020874,2]
[312688847,1706146128249,164.33870272,0.00021598,2]
[312688872,1706146232325,-285.73177074,0.00021689,2]
[312688873,1706146232334,-592.19839171,0.0002169,2]
[312688874,1706146232346,-316.39842106,0.0002169,2]
[312688875,1706146232359,-102.40318723,0.0002169,2]
[312688876,1706146232369,-301.41783471,0.00021697,2]
[312688877,1706146232378,-172.6713176,0.00021697,2]
[312688878,1706146232388,-1868.25326838,0.00021698,2]
[312688879,1706146232399,-457.85527997,0.00021698,2]
[312688880,1706146232411,-419.05509928,0.00021698,2]
[312688881,1706146232507,-428.52954972,0.00021698,2]
[312688882,1706146232520,-87301.80870265,0.00021698,2]
[312688883,1706146232529,-1032.7859,0.00021698,2]
[312688884,1706146232538,-2658.2278,0.00021698,2]
[312688885,1706146232548,-4928.7792,0.00021698,2]
[312688886,1706146232557,-9110.458,0.00021698,2]
[312688887,1706146232567,-778.6494,0.00021698,2]
[312688888,1706146232577,-2500.0,0.00021698,2]
[312688889,1706146232586,-3008.52191293,0.00021796,2]
[312688891,1706146232595,-3008.52191293,0.00021796,2]
[312688893,1706146232604,-1000.0,0.00021798,2]
[312688895,1706146232614,-99868.73067493,0.00021798,2]
[312688898,1706146232632,-794.52037043,0.00021798,2]
[312688899,1706146232644,-1885.15,0.00021798,2]
[312688900,1706146232655,-382.27303422,0.00021798,2]
[312688903,1706146238321,-1000.0,0.00021698,2]
[312688904,1706146238331,-157167.84425377,0.00021797,2]
[312688905,1706146238343,-747617.94217001,0.00021797,2]
[312688906,1706146238356,-79951.09891425,0.00021797,2]
[312688907,1706146238490,-342.7500003,0.00021797,2]
[312688908,1706146238588,-442.9122,0.00021797,2]
[312688909,1706146238675,-72924.23865825,0.00021797,2]
[312688910,1706146238684,-142069.32592042,0.00021798,2]
[312688911,1706146238694,-3172.53455352,0.00022104,2]
[312688912,1706146238704,-1699.5530523,0.00022204,2]
[312688913,1706146238713,-1699.55305231,0.00022204,2]
[312688914,1706146238723,-3598.98,0.00022251,2]
[312688915,1706146238732,-3172.5345535,0.00022276,2]
[312688916,1706146238742,-756.41,0.00022398,2]
[312688918,1706146238752,-3172.5345535,0.00022447,2]
[312688920,1706146238761,-3300.96,0.00022452,2]
[312688922,1706146238772,-499.99,0.00022452,2]
[312688924,1706146238781,-422.54,0.00022452,2]
[312688926,1706146238790,-3172.5345535,0.00022619,2]
[312688928,1706146238800,-129520.46721215,0.0002275,2]
[312688929,1706146238809,-3172.5345535,0.0002279,2]
[312688930,1706146238818,-38698.98843825,0.000229,2]
[312688931,1706146238827,-151.64,0.00023404,2]
[312688932,1706146238836,-14240.62,0.00023425,2]
[312688933,1706146238845,-1000.0,0.00023748,2]
[312688934,1706146238854,-2701.5000011,0.00024,7]
[312688935,1706146238863,-250.0,0.00024074,2]
[312688936,1706146238873,-2000.0,0.00024332,2]
[312688937,1706146238882,-208.09,0.00024471,2]
[312688938,1706146238892,-250.0,0.00024658,2]
[312688939,1706146238902,-216.81,0.00024961,2]
[312688940,1706146238912,-450.0,0.00025,3]
[312688941,1706146238921,-250.0,0.00025383,2]
[312688942,1706146238931,-151.64,0.00025934,2]
[312688943,1706146238940,-500.0,0.00026,2]
[312688944,1706146238950,-655.12,0.00026575,2]
[312688945,1706146238959,-1000.0,0.00026717,2]
[312688946,1706146238969,-500.0,0.00027,3]
[312688947,1706146238979,-1068.34,0.0002759,2]
[312688948,1706146238989,-208.09,0.00028093,2]
[312688949,1706146238998,-151.64,0.00028464,2]
[312688950,1706146239007,-550.0,0.00029,3]
[312688951,1706146239017,-1000.0,0.00029685,2]
[312688952,1706146239026,-171.8661002,0.0002989,2]
[312688953,1706146239035,-500.0,0.000299,2]
[312688954,1706146239044,-39893.4789,0.000299,2]
[312688955,1706146239053,-100000.0,0.000299,2]
[312688956,1706146239062,-1000.0,0.000299,2]
[312688957,1706146239070,-155.0,0.0003,2]
[312688958,1706146239080,-1065.79688428,0.0003,4]
[312688959,1706146239089,-151.64,0.00030994,2]
[312688960,1706146239099,-600.0,0.00031,3]
[312688961,1706146239108,-180.0,0.00031644,2]
[312688962,1706146239117,-164.33870272,0.00032348,2]
[312688963,1706146239126,-1000.0,0.00032654,2]
[312688964,1706146239135,-813.343996,0.00032699,120]
[312688965,1706146239144,-158.02,0.00032877,15]
[312688966,1706146239153,-30000.0,0.00033,2]
[312688967,1706146239162,-650.0,0.00033,3]
[312688968,1706146239171,-282.31612789,0.00033,4]
[312688969,1706146239180,-216.81,0.0003318,2]
[312688970,1706146239189,-151.64,0.00033525,2]
[312688971,1706146239198,-5705.94021961,0.00034,2]
[312688972,1706146239207,-1000.0,0.00034,4]
[312688973,1706146239217,-744.76882656,0.000349,2]
[312688974,1706146239226,-700.0,0.00035,3]
[312688975,1706146239236,-1000.0,0.00035622,2]
[312688976,1706146239245,-151.64,0.00036055,2]
[312688977,1706146239254,-750.0,0.00037,3]
[312688978,1706146239263,-61426.0,0.00037244,2]
[312688979,1706146239274,-655.12,0.00037808,2]
[312688980,1706146239284,-37000.0,0.00038,7]
[312688981,1706146239293,-256.81644668,0.00038248,7]
[312688982,1706146239303,-150.0,0.00038356,2]
[312688983,1706146239312,-151.64,0.00038585,2]
[312688984,1706146239321,-158.02,0.00038748,15]
[312688985,1706146239330,-1068.34,0.00038823,2]
[312688986,1706146239339,-282.21761447,0.0003898,2]
[312688987,1706146239348,-701.03904126,0.00039,10]
[312688988,1706146239357,-620.63088492,0.00039,4]
[312688989,1706146239367,-1429.82219222,0.00039,2]
[312688990,1706146239376,-800.0,0.00039,3]
[312688991,1706146239386,-150.0,0.00039366,2]
[312688992,1706146239395,-235.0,0.00039375,2]
[312688993,1706146239404,-368.199,0.00039375,2]
[312688994,1706146239414,-507.0,0.00039375,2]
[312688995,1706146239423,-1138.001,0.00039375,2]
[312688996,1706146239432,-838.028,0.00039375,2]
[312688997,1706146239441,-856.09,0.00039375,2]
[312688998,1706146239451,-405.073,0.00039375,2]
[312688999,1706146239460,-1226.977,0.00039375,2]
[312689000,1706146239470,-451.225,0.00039375,2]
[312689001,1706146239479,-1861.872,0.00039375,2]
[312689002,1706146239489,-950.623,0.00039375,2]
[312689003,1706146239498,-1837.458,0.00039375,2]
[312689004,1706146239507,-7885.9913,0.000399,120]
[312689005,1706146239518,-3762.43,0.00039999,2]
[312689006,1706146239527,-3762.43,0.00039999,2]
[312689007,1706146239536,-3762.43,0.00039999,2]
[312689008,1706146239545,-3762.43,0.00039999,2]
[312689009,1706146239554,-3762.43,0.00039999,2]
[312689010,1706146239563,-3762.43,0.00039999,2]
[312689011,1706146239573,-3762.43,0.00039999,2]
[312689012,1706146239582,-3762.43,0.00039999,2]
[312689013,1706146239590,-3762.43,0.00039999,2]
[312689014,1706146239600,-3762.43,0.00039999,2]
[312689015,1706146239609,-2271.20743593,0.0004,4]
[312689016,1706146239618,-33000.0,0.0004,14]
[312689017,1706146239627,-1084.9827743,0.0004,4]
[312689018,1706146239637,-155.0,0.0004,2]
[312689019,1706146239645,-40522.05006112,0.0004,4]
[312689020,1706146239656,-1999.93367512,0.0004,4]
[312689021,1706146239665,-569.51987199,0.0004,4]
[312689022,1706146239675,-22041.80226571,0.0004,4]
[312689023,1706146239684,-192.97765448,0.0004,4]
[312689024,1706146239693,-569.12017158,0.0004,2]
[312689025,1706146239702,-961.81967318,0.0004,4]
[312689026,1706146239714,-204.0,0.00040159,10]
[312689027,1706146239723,-151.36642339,0.00040265,7]
[312689028,1706146239732,-25154.5645831,0.00040365,10]
[312689029,1706146239742,-85677.9865241,0.00040365,5]
[312689030,1706146239751,-150.0,0.00040375,2]
[312689031,1706146239760,-629.84745,0.00040567,30]
[312689032,1706146239771,-150.0,0.00040567,30]
[312689033,1706146239780,-1264.3354,0.00040567,7]
[312689034,1706146239790,-3444.44324304,0.00041,4]
[312689035,1706146239798,-850.0,0.00041,3]
[312689036,1706146239807,-151.64,0.00041115,2]
[312689037,1706146239817,-500.0,0.0004137,2]
[312689038,1706146239826,-150.0,0.00041384,2]
[312689039,1706146239834,-255.42907189,0.00041413,15]
[312689040,1706146239844,-255.0,0.0004149,2]
[312689041,1706146239853,-6856.45314807,0.00041513,2]
[312689042,1706146239862,-204.0,0.00041813,10]
[312689043,1706146239871,-840.72075988,0.00042,120]
[312689044,1706146239880,-317.17675089,0.00042,4]
[312689045,1706146239890,-152.24,0.00042,2]
[312689046,1706146239899,-1734.1411425,0.00042,30]
[312689047,1706146239910,-972.75285327,0.00042331,4]
[312689048,1706146239921,-150.0,0.00042394,2]
[312689049,1706146239930,-752.4855727,0.000425,10]
[312689050,1706146239939,-151.36642332,0.00042594,16]
[312689051,1706146239948,-2409.64292332,0.00042763,2]
[312689052,1706146239960,-333.0,0.0004299,2]
[312689053,1706146239969,-389.80244337,0.00043,30]
[312689054,1706146239979,-5000.0,0.00043053,3]
[312689055,1706146239990,-33191.0,0.0004309,2]
[312689056,1706146239999,-8940.0,0.0004309,2]
[312689057,1706146240009,-1793.77,0.00043095,5]
[312689058,1706146240021,-164.33870272,0.00043097,2]
[312689059,1706146240030,-152.24,0.00043155,2]
[312689060,1706146240039,-257033.959572,0.00043166,10]
[312689061,1706146240049,-171355.973048,0.00043175,10]
[312689062,1706146240058,-152.24,0.00043175,2]
[312689063,1706146240067,-2686.0,0.00043178,30]
[312689065,1706146240077,-4883.69430377,0.00043185,2]
[312689066,1706146240086,-171355.973048,0.00043186,10]
[312689068,1706146240095,-152.24,0.00043186,2]
[312689070,1706146240105,-152.24,0.00043186,2]
[312689071,1706146240113,-1252.51228309,0.00043194,2]
[312689072,1706146240122,-1467.46749467,0.00043195,4]
[312689074,1706146240132,-250.42352751,0.00043195,4]
[312689076,1706146240141,-2320.76864865,0.00043195,4]
[312689077,1706146240150,-1995.96512012,0.00043195,4]
[312689079,1706146240159,-242.58443095,0.00043195,4]
[312689080,1706146240168,-582.12143122,0.00043195,4]
[312689081,1706146240178,-151.0,0.00043196,14]
[312689082,1706146240187,-151.0,0.00043196,14]
[312689083,1706146240196,-151.0,0.00043196,14]
[312689084,1706146240205,-151.0,0.00043196,14]
[312689085,1706146240215,-214.99388,0.00043196,14]
[312689086,1706146240224,-214.99388,0.00043196,14]
[312689087,1706146240233,-154.974933,0.00043196,14]
[312689088,1706146240242,-154.974933,0.00043196,14]
[312689089,1706146240251,-151.0,0.00043196,2]
[312689090,1706146240260,-3145.8449708,0.00043196,4]
[312689091,1706146240273,-800.0,0.00043197,2]
[312689092,1706146240282,-155.04297235,0.00043197,4]
[312689093,1706146240292,-293.62965621,0.00043197,4]
[312689094,1706146240301,-174.19,0.000432,7]
[312689095,1706146240310,-150.0,0.00043403,2]
[312689096,1706146240320,-204.0,0.00043466,11]
[312689097,1706146240329,-151.64,0.00043646,2]
[312689098,1706146240339,-264.0,0.0004369,2]
[312689099,1706146240348,-500.0,0.000438,2]
[312689100,1706146240358,-8000.0,0.000438,2]
[312689101,1706146240367,-165.10792525,0.00044,30]
[312689102,1706146240376,-195.47893568,0.00044,30]
[312689103,1706146240386,-150.0,0.00044412,2]
[312689104,1706146240395,-158.02,0.00044618,15]
[312689105,1706146240405,-1353.747,0.0004463,14]
[312689106,1706146240414,-265.37663556,0.00044781,7]
[312689107,1706146240423,-2249.39460591,0.000449,30]
[312689108,1706146240432,-151.36642332,0.00044924,25]
[312689109,1706146240442,-26884.73463826,0.00045,4]
[312689110,1706146240451,-207.2145661,0.00045,2]
[312689111,1706146240461,-2485.0,0.00045,2]
[312689112,1706146240470,-500.0,0.00045041,14]
[312689113,1706146240479,-204.0,0.00045119,16]
[312689114,1706146240488,-384.4548,0.0004514,30]
[312689115,1706146240497,-248.0,0.0004519,2]
[312689116,1706146240507,-8000.0,0.000452,2]
[312689117,1706146240517,-150.0,0.00045422,2]
[312689118,1706146240526,-1820.64385609,0.00045696,10]
[312689119,1706146240536,-14376.16711647,0.00045748,20]
[312689120,1706146240545,-500.0,0.00045783,14]
[312689121,1706146240554,-4341.0,0.000458,2]
[312689122,1706146240563,-1847.02045642,0.00045849,10]
[312689123,1706146240573,-528.20128708,0.0004588,100]
[312689124,1706146240582,-151.64,0.00046176,2]
[312689125,1706146240592,-150.0,0.00046431,2]
[312689126,1706146240601,-500.0,0.00046524,14]
[312689127,1706146240610,-187.5,0.00046575,120]
[312689128,1706146240619,-247.0,0.0004659,2]
[312689129,1706146240628,-6824.17490637,0.0004659,30]
[312689130,1706146240637,-8000.0,0.000466,2]
[312689131,1706146240646,-204.0,0.00046773,21]
[312689132,1706146240655,-151.36642332,0.00047253,34]
[312689133,1706146240664,-500.0,0.00047266,14]
[312689134,1706146240673,-150.0,0.0004744,2]
[312689135,1706146240683,-255.42907189,0.00047648,23]
[312689136,1706146240692,-251.66966176,0.000477,30]
[312689137,1706146240701,-432.0,0.0004789,2]
[312689138,1706146240711,-152.24,0.0004789,2]
[312689139,1706146240721,-171.8661002,0.0004789,2]
[312689140,1706146240731,-5000.0,0.000479,2]
[312689141,1706146240741,-1000.0,0.000479,2]
[312689142,1706146240752,-8000.0,0.000479,2]
[312689143,1706146240762,-500.0,0.00048007,14]
[312689144,1706146240773,-204.0,0.00048426,26]
[312689145,1706146240782,-150.0,0.0004845,2]
[312689146,1706146240793,-174.19,0.000485,7]
[312689147,1706146240803,-1063.7807401,0.00048596,5]
[312689149,1706146240812,-151.64,0.00048706,2]
[312689151,1706146240820,-500.0,0.00048749,14]
[312689152,1706146240830,-300.0,0.00049,50]
[312689153,1706146240838,-655.12,0.00049041,2]
[312689154,1706146240848,-55555.0,0.00049215,5]
[312689155,1706146240857,-194.0,0.0004929,2]
[312689156,1706146240866,-8000.0,0.000493,5]
[312689158,1706146240875,-150.46,0.0004931,5]
[312689160,1706146240885,-150.0,0.00049314,9]
[312689163,1706146240897,-150.0,0.00049314,9]
[312689165,1706146240910,-500.0,0.00049315,31]
[312689167,1706146240920,-500.0,0.00049315,31]
[312689168,1706146240930,-541.19245926,0.00049315,31]
[312689169,1706146240940,-500.0,0.00049315,31]
[312689170,1706146240951,-500.0,0.00049315,31]
[312689171,1706146240961,-500.0,0.00049315,31]
[312689172,1706146240970,-500.0,0.00049315,31]
[312689173,1706146240980,-500.0,0.00049315,31]